[Event "Late-Titled-Tuesday-Blitz-May-14-2024"]
[Site "Chess.com"]
[Date "2024.05.14"]
[Round "5"]
[White "cukricek"]
[Black "hblanco"]
[Result "0-1"]
[WhiteElo "2443"]
[BlackElo "2612"]
[TimeControl "180+1"]
[EndTime "14:55:12 PDT"]
[Termination "hblanco won by resignation"]

1. g3 {[%clk 0:03:00.9]} 1... d5 {[%clk 0:02:59.6]} 2. Nf3 {[%clk 0:03:00]} 2...
Nf6 {[%clk 0:02:59.9]} 3. Bg2 {[%clk 0:03:00.4]} 3... c6 {[%clk 0:03:00.1]} 4.
O-O {[%clk 0:03:00.5]} 4... g6 {[%clk 0:02:59.9]} 5. d4 {[%clk 0:02:44.6]} 5...
Bg7 {[%clk 0:02:59.7]} 6. c4 {[%clk 0:02:45.1]} 6... O-O {[%clk 0:02:59.8]} 7.
b3 {[%clk 0:02:45.5]} 7... a5 {[%clk 0:02:58.5]} 8. Bb2 {[%clk 0:02:43.4]} 8...
a4 {[%clk 0:02:58.4]} 9. Nbd2 {[%clk 0:02:43.8]} 9... Bf5 {[%clk 0:02:41.7]} 10.
Ne5 {[%clk 0:02:40]} 10... a3 {[%clk 0:02:38.2]} 11. Bc3 {[%clk 0:02:27.4]}
11... Nbd7 {[%clk 0:02:38.3]} 12. Nxd7 {[%clk 0:02:19.4]} 12... Qxd7 {[%clk
0:02:39.2]} 13. Rc1 {[%clk 0:02:18.3]} 13... h5 {[%clk 0:02:30.5]} 14. Re1
{[%clk 0:02:16.9]} 14... Rfd8 {[%clk 0:02:29.8]} 15. e3 {[%clk 0:02:07.8]} 15...
h4 {[%clk 0:01:54.2]} 16. Nf3 {[%clk 0:02:00.3]} 16... h3 {[%clk 0:01:53.4]} 17.
Bf1 {[%clk 0:01:57.3]} 17... Ne4 {[%clk 0:01:47.9]} 18. Bb4 {[%clk 0:01:51.7]}
18... Bg4 {[%clk 0:01:46.3]} 19. Be2 {[%clk 0:01:50.6]} 19... Bf6 {[%clk
0:00:38.5]} 20. Nd2 {[%clk 0:01:50.6]} 20... Bxe2 {[%clk 0:00:27.1]} 21. Qxe2
{[%clk 0:01:49]} 21... Nxd2 {[%clk 0:00:27.4]} 22. Qxd2 {[%clk 0:01:40.8]} 22...
Qf5 {[%clk 0:00:25.9]} 23. Qe2 {[%clk 0:01:33.9]} 23... e5 {[%clk 0:00:22.9]}
24. dxe5 {[%clk 0:01:28.3]} 24... Bxe5 {[%clk 0:00:20.3]} 25. f4 {[%clk
0:01:28.6]} 25... Bb2 {[%clk 0:00:19.9]} 26. Rcd1 {[%clk 0:01:27]} 26... Re8
{[%clk 0:00:19.9]} 27. cxd5 {[%clk 0:01:23.5]} 27... cxd5 {[%clk 0:00:20.8]} 28.
Qf3 {[%clk 0:01:21.6]} 28... Re4 {[%clk 0:00:20.4]} 29. Bc5 {[%clk 0:01:11.1]}
29... Rae8 {[%clk 0:00:19.7]} 30. g4 {[%clk 0:01:08.2]} 30... Qe6 {[%clk
0:00:19.8]} 31. Qxh3 {[%clk 0:01:06.5]} 31... b6 {[%clk 0:00:20]} 32. Bb4 {[%clk
0:00:51.3]} 32... Rxb4 {[%clk 0:00:19.8]} 33. Qf3 {[%clk 0:00:45.8]} 33... Re4
{[%clk 0:00:19.5]} 34. Rd3 {[%clk 0:00:46.1]} 34... d4 {[%clk 0:00:18.8]} 35. f5
{[%clk 0:00:44.2]} 35... Qf6 {[%clk 0:00:17.2]} 0-1

[Event "Late-Titled-Tuesday-Blitz-May-14-2024"]
[Site "Chess.com"]
[Date "2024.05.14"]
[Round "5"]
[White "Kira170"]
[Black "LiemLe"]
[Result "0-1"]
[WhiteElo "2756"]
[BlackElo "3042"]
[TimeControl "180+1"]
[EndTime "14:55:14 PDT"]
[Termination "LiemLe won by resignation"]

1. d4 {[%clk 0:03:00.9]} 1... Nf6 {[%clk 0:02:59.2]} 2. c4 {[%clk 0:02:59.8]}
2... g6 {[%clk 0:02:57.9]} 3. Nc3 {[%clk 0:02:59.4]} 3... d5 {[%clk 0:02:58.6]}
4. Nf3 {[%clk 0:02:56.2]} 4... Bg7 {[%clk 0:02:58.6]} 5. h4 {[%clk 0:02:56.5]}
5... c6 {[%clk 0:02:57.6]} 6. cxd5 {[%clk 0:02:53.2]} 6... cxd5 {[%clk
0:02:58.5]} 7. Bf4 {[%clk 0:02:53.2]} 7... Nc6 {[%clk 0:02:58.6]} 8. Qb3 {[%clk
0:02:51.9]} 8... Nh5 {[%clk 0:02:35.8]} 9. Be5 {[%clk 0:02:43.4]} 9... Bxe5
{[%clk 0:02:00.8]} 10. Nxe5 {[%clk 0:02:43.2]} 10... O-O {[%clk 0:01:51.3]} 11.
Nxc6 {[%clk 0:02:37.7]} 11... bxc6 {[%clk 0:01:52.2]} 12. e3 {[%clk 0:02:38.2]}
12... Qd6 {[%clk 0:01:49.5]} 13. Be2 {[%clk 0:02:36.6]} 13... Rb8 {[%clk
0:01:41.6]} 14. Qa3 {[%clk 0:02:36.7]} 14... Qxa3 {[%clk 0:01:33.2]} 15. bxa3
{[%clk 0:02:37.6]} 15... Ng7 {[%clk 0:01:29.5]} 16. Na4 {[%clk 0:02:33.1]} 16...
Ne6 {[%clk 0:01:29.2]} 17. Kd2 {[%clk 0:02:26.5]} 17... c5 {[%clk 0:01:22.7]}
18. Nxc5 {[%clk 0:01:42.6]} 18... Rb2+ {[%clk 0:01:21]} 19. Ke1 {[%clk
0:01:42.6]} 19... Nxc5 {[%clk 0:01:20.7]} 20. dxc5 {[%clk 0:01:43.5]} 20... Rc2
{[%clk 0:01:10.4]} 21. Bd3 {[%clk 0:01:12.5]} 21... Rxc5 {[%clk 0:01:09.9]} 22.
Kd2 {[%clk 0:01:12.7]} 22... Ra5 {[%clk 0:01:10.6]} 23. Bc2 {[%clk 0:00:56.8]}
23... Rxa3 {[%clk 0:01:07.1]} 24. Bb3 {[%clk 0:00:57.1]} 24... Be6 {[%clk
0:01:07.4]} 25. h5 {[%clk 0:00:49.4]} 25... Kg7 {[%clk 0:00:58.4]} 26. Rac1
{[%clk 0:00:43.1]} 26... d4 {[%clk 0:00:57.3]} 27. h6+ {[%clk 0:00:28.4]} 27...
Kf6 {[%clk 0:00:56.3]} 28. exd4 {[%clk 0:00:15.2]} 28... Bxb3 {[%clk 0:00:55.7]}
29. axb3 {[%clk 0:00:16.1]} 29... Rxb3 {[%clk 0:00:53.1]} 30. Rc6+ {[%clk
0:00:12.4]} 30... e6 {[%clk 0:00:53.4]} 31. Ra6 {[%clk 0:00:09.7]} 31... Rd8
{[%clk 0:00:48.1]} 32. Rh4 {[%clk 0:00:09.4]} 32... g5 {[%clk 0:00:47.5]} 33.
Re4 {[%clk 0:00:09.1]} 33... Rd7 {[%clk 0:00:46.7]} 34. f4 {[%clk 0:00:03.2]}
34... Kf5 {[%clk 0:00:44]} 35. Re5+ {[%clk 0:00:02.3]} 35... Kxf4 {[%clk
0:00:44.5]} 0-1

[Event "Late-Titled-Tuesday-Blitz-May-14-2024"]
[Site "Chess.com"]
[Date "2024.05.14"]
[Round "5"]
[White "chenxiaoyuer"]
[Black "Duhless"]
[Result "1/2-1/2"]
[WhiteElo "2898"]
[BlackElo "3110"]
[TimeControl "180+1"]
[EndTime "14:55:18 PDT"]
[Termination "Game drawn by agreement"]

1. e4 {[%clk 0:03:00.9]} 1... c5 {[%clk 0:02:59.9]} 2. Nf3 {[%clk 0:03:01.2]}
2... d6 {[%clk 0:03:00.6]} 3. d4 {[%clk 0:03:01.9]} 3... cxd4 {[%clk 0:03:01.5]}
4. Nxd4 {[%clk 0:03:02.7]} 4... Nf6 {[%clk 0:03:02]} 5. Nc3 {[%clk 0:03:03.3]}
5... Nc6 {[%clk 0:03:00.2]} 6. Be2 {[%clk 0:03:01.7]} 6... g6 {[%clk 0:02:58.7]}
7. O-O {[%clk 0:03:01.5]} 7... Bg7 {[%clk 0:02:58.8]} 8. Nb3 {[%clk 0:03:02.2]}
8... O-O {[%clk 0:02:58.7]} 9. Bg5 {[%clk 0:03:02.8]} 9... Be6 {[%clk
0:02:56.9]} 10. Kh1 {[%clk 0:03:03.1]} 10... Rc8 {[%clk 0:02:55.7]} 11. f4
{[%clk 0:03:03]} 11... Na5 {[%clk 0:02:50.2]} 12. Nd2 {[%clk 0:03:02.4]} 12...
Rxc3 {[%clk 0:02:31.1]} 13. bxc3 {[%clk 0:02:59.1]} 13... Qc7 {[%clk 0:02:31.5]}
14. f5 {[%clk 0:02:41]} 14... Bd7 {[%clk 0:02:25.6]} 15. Nb3 {[%clk 0:02:29.9]}
15... Nc4 {[%clk 0:02:21.4]} 16. Bxc4 {[%clk 0:02:26.4]} 16... Qxc4 {[%clk
0:02:21.1]} 17. e5 {[%clk 0:02:25.2]} 17... Ng4 {[%clk 0:02:10.1]} 18. Bxe7
{[%clk 0:02:18.4]} 18... Re8 {[%clk 0:02:01.9]} 19. exd6 {[%clk 0:01:53]} 19...
Ne3 {[%clk 0:01:51.5]} 20. Qd3 {[%clk 0:01:47.7]} 20... Qxd3 {[%clk 0:01:38.1]}
21. cxd3 {[%clk 0:01:48.6]} 21... Bxc3 {[%clk 0:01:27.7]} 22. fxg6 {[%clk
0:01:42.3]} 22... hxg6 {[%clk 0:01:24.4]} 23. Nc5 {[%clk 0:01:39.8]} 23... Bc6
{[%clk 0:01:19.2]} 24. Ne4 {[%clk 0:01:28.5]} 24... Bxa1 {[%clk 0:00:52]} 25.
Rxa1 {[%clk 0:01:29.4]} 25... Nd5 {[%clk 0:00:51.7]} 26. Re1 {[%clk 0:01:14.7]}
26... f5 {[%clk 0:00:40.9]} 27. Nc5 {[%clk 0:01:06.5]} 27... Kf7 {[%clk
0:00:39.4]} 28. Bh4 {[%clk 0:00:56.6]} 28... Rxe1+ {[%clk 0:00:34.8]} 29. Bxe1
{[%clk 0:00:57.5]} 29... Ke8 {[%clk 0:00:30.1]} 30. Kg1 {[%clk 0:00:54.5]} 30...
b6 {[%clk 0:00:28.3]} 31. Ne6 {[%clk 0:00:54.8]} 31... Bd7 {[%clk 0:00:21.9]}
32. Nc7+ {[%clk 0:00:54.6]} 32... Nxc7 {[%clk 0:00:21.8]} 33. dxc7 {[%clk
0:00:55.5]} 33... Be6 {[%clk 0:00:18.5]} 34. a3 {[%clk 0:00:54.9]} 34... Kd7
{[%clk 0:00:17.7]} 35. Bg3 {[%clk 0:00:55.2]} 35... Ba2 {[%clk 0:00:15.2]} 36.
Bf4 {[%clk 0:00:54.6]} 36... Bb1 {[%clk 0:00:15]} 37. d4 {[%clk 0:00:54.5]}
37... Be4 {[%clk 0:00:14.9]} 38. Kf2 {[%clk 0:00:54.9]} 38... b5 {[%clk
0:00:15.2]} 39. g3 {[%clk 0:00:52.4]} 39... a5 {[%clk 0:00:14.8]} 40. Ke3 {[%clk
0:00:53]} 40... b4 {[%clk 0:00:11.6]} 41. axb4 {[%clk 0:00:52.6]} 41... axb4
{[%clk 0:00:12]} 42. Kd2 {[%clk 0:00:53.5]} 42... b3 {[%clk 0:00:12.2]} 43. Kc3
{[%clk 0:00:53.6]} 43... Bd5 {[%clk 0:00:12.7]} 44. h4 {[%clk 0:00:52.3]}
1/2-1/2

[Event "Late-Titled-Tuesday-Blitz-May-14-2024"]
[Site "Chess.com"]
[Date "2024.05.14"]
[Round "5"]
[White "Jahonas"]
[Black "HipsterChess22"]
[Result "1-0"]
[WhiteElo "2370"]
[BlackElo "2183"]
[TimeControl "180+1"]
[EndTime "14:55:20 PDT"]
[Termination "Jahonas won on time"]

1. d4 {[%clk 0:03:00.9]} 1... d5 {[%clk 0:02:59.9]} 2. c4 {[%clk 0:03:00.1]}
2... e6 {[%clk 0:03:00.1]} 3. cxd5 {[%clk 0:03:00.4]} 3... exd5 {[%clk
0:03:00.1]} 4. Nc3 {[%clk 0:03:01]} 4... c6 {[%clk 0:02:55.6]} 5. Nf3 {[%clk
0:03:00.8]} 5... Bf5 {[%clk 0:02:52.4]} 6. Bf4 {[%clk 0:03:00.5]} 6... Qb6
{[%clk 0:02:49.9]} 7. Qb3 {[%clk 0:02:58.2]} 7... Nd7 {[%clk 0:02:49.2]} 8. e3
{[%clk 0:02:57.5]} 8... Ngf6 {[%clk 0:02:34.8]} 9. Be2 {[%clk 0:02:54.4]} 9...
h6 {[%clk 0:02:34.5]} 10. O-O {[%clk 0:02:53.1]} 10... Be7 {[%clk 0:02:34.3]}
11. Rac1 {[%clk 0:02:49.6]} 11... O-O {[%clk 0:02:33.7]} 12. Na4 {[%clk
0:02:48.6]} 12... Qxb3 {[%clk 0:02:32]} 13. axb3 {[%clk 0:02:48.2]} 13... Bb4
{[%clk 0:02:22.6]} 14. Rfd1 {[%clk 0:02:42.2]} 14... Rfe8 {[%clk 0:02:21.7]} 15.
Ne5 {[%clk 0:02:40.4]} 15... Nxe5 {[%clk 0:02:18.8]} 16. Bxe5 {[%clk 0:02:39.8]}
16... Nd7 {[%clk 0:02:16.5]} 17. Bg3 {[%clk 0:02:37.3]} 17... Re7 {[%clk
0:02:01.5]} 18. Bd3 {[%clk 0:02:35.2]} 18... Bxd3 {[%clk 0:01:58.9]} 19. Rxd3
{[%clk 0:02:33.8]} 19... Rae8 {[%clk 0:01:58.4]} 20. h3 {[%clk 0:02:29.6]} 20...
f5 {[%clk 0:01:52]} 21. h4 {[%clk 0:02:18.8]} 21... g5 {[%clk 0:01:51]} 22. hxg5
{[%clk 0:02:17]} 22... hxg5 {[%clk 0:01:51.9]} 23. Nc5 {[%clk 0:02:13.9]} 23...
Bxc5 {[%clk 0:01:29.5]} 24. dxc5 {[%clk 0:02:12.7]} 24... Nf6 {[%clk 0:01:22]}
25. Bd6 {[%clk 0:02:10.4]} 25... Rh7 {[%clk 0:01:20.7]} 26. f3 {[%clk 0:02:09]}
26... Kf7 {[%clk 0:01:16.7]} 27. b4 {[%clk 0:02:08.2]} 27... a6 {[%clk 0:01:16]}
28. b5 {[%clk 0:01:56.1]} 28... axb5 {[%clk 0:01:13.9]} 29. Ra1 {[%clk
0:01:55.4]} 29... Reh8 {[%clk 0:01:05.6]} 30. Kf2 {[%clk 0:01:54.4]} 30... g4
{[%clk 0:01:04.1]} 31. Ra7 {[%clk 0:01:51.4]} 31... Kg6 {[%clk 0:01:03.9]} 32.
Be5 {[%clk 0:01:37.6]} 32... Re8 {[%clk 0:01:02.9]} 33. Bf4 {[%clk 0:01:32.6]}
33... Nh5 {[%clk 0:00:59.9]} 34. Bd6 {[%clk 0:01:31.8]} 34... Nf6 {[%clk
0:00:50.8]} 35. b4 {[%clk 0:01:31.1]} 35... Rg8 {[%clk 0:00:42.1]} 36. Rd4
{[%clk 0:01:26.9]} 36... gxf3 {[%clk 0:00:38.5]} 37. gxf3 {[%clk 0:01:26.3]}
37... Rgg7 {[%clk 0:00:17.4]} 38. Rd1 {[%clk 0:01:24]} 38... Rd7 {[%clk
0:00:13.8]} 39. Be5 {[%clk 0:01:23.9]} 39... Kf7 {[%clk 0:00:11.2]} 40. Rg1
{[%clk 0:01:23.4]} 40... Re7 {[%clk 0:00:08.7]} 41. Bd6 {[%clk 0:01:23]} 41...
Rd7 {[%clk 0:00:08.1]} 42. Rg5 {[%clk 0:01:23.2]} 42... Rh5 {[%clk 0:00:06]} 43.
Rxh5 {[%clk 0:01:16.1]} 43... Nxh5 {[%clk 0:00:06.9]} 44. Ra8 {[%clk 0:01:16]}
44... f4 {[%clk 0:00:02.9]} 45. exf4 {[%clk 0:01:10.4]} 45... Nf6 {[%clk
0:00:01.5]} 46. Rf8+ {[%clk 0:01:06.6]} 1-0

[Event "Late-Titled-Tuesday-Blitz-May-14-2024"]
[Site "Chess.com"]
[Date "2024.05.14"]
[Round "5"]
[White "MITerryble"]
[Black "rychessmaster1"]
[Result "1-0"]
[WhiteElo "3006"]
[BlackElo "2747"]
[TimeControl "180+1"]
[EndTime "14:55:22 PDT"]
[Termination "MITerryble won by resignation"]

1. d4 {[%clk 0:02:55.5]} 1... Nf6 {[%clk 0:02:58.7]} 2. Bg5 {[%clk 0:02:55.6]}
2... Ne4 {[%clk 0:02:57.5]} 3. Bf4 {[%clk 0:02:54.6]} 3... d5 {[%clk 0:02:57.2]}
4. f3 {[%clk 0:02:53.3]} 4... Nf6 {[%clk 0:02:57]} 5. Nc3 {[%clk 0:02:53.8]}
5... c5 {[%clk 0:02:49.1]} 6. e3 {[%clk 0:02:51.3]} 6... cxd4 {[%clk 0:02:32.6]}
7. Nb5 {[%clk 0:02:37.4]} 7... Na6 {[%clk 0:02:30.2]} 8. exd4 {[%clk 0:02:37.1]}
8... g6 {[%clk 0:02:17.5]} 9. Qd2 {[%clk 0:02:32.3]} 9... Bg7 {[%clk 0:02:15.5]}
10. Bh6 {[%clk 0:02:32.1]} 10... O-O {[%clk 0:02:15.9]} 11. Bxg7 {[%clk
0:02:28.3]} 11... Kxg7 {[%clk 0:02:16.8]} 12. Bd3 {[%clk 0:02:27.8]} 12... Nc7
{[%clk 0:02:07.8]} 13. Nxc7 {[%clk 0:02:27.6]} 13... Qxc7 {[%clk 0:02:08.7]} 14.
Ne2 {[%clk 0:02:28.1]} 14... b6 {[%clk 0:01:23.4]} 15. O-O-O {[%clk 0:02:27.6]}
15... a5 {[%clk 0:01:23.2]} 16. g4 {[%clk 0:02:25.9]} 16... Ba6 {[%clk
0:01:21.1]} 17. Bxa6 {[%clk 0:02:24.3]} 17... Rxa6 {[%clk 0:01:22]} 18. h4
{[%clk 0:02:24.8]} 18... h5 {[%clk 0:01:08.5]} 19. Nf4 {[%clk 0:02:25]} 19...
hxg4 {[%clk 0:00:53.8]} 20. h5 {[%clk 0:02:25.9]} 20... e5 {[%clk 0:00:29.6]}
21. dxe5 {[%clk 0:02:18.6]} 21... Qxe5 {[%clk 0:00:29.8]} 22. hxg6 {[%clk
0:02:15.9]} 22... fxg6 {[%clk 0:00:23.9]} 23. Nd3 {[%clk 0:01:33.5]} 23... Qd4
{[%clk 0:00:09.2]} 24. Qh6+ {[%clk 0:01:31.2]} 24... Kf7 {[%clk 0:00:09.8]} 25.
Rhe1 {[%clk 0:01:31.4]} 25... Re8 {[%clk 0:00:05.4]} 26. Ne5+ {[%clk 0:01:21.4]}
26... Qxe5 {[%clk 0:00:05.8]} 27. Rxe5 {[%clk 0:01:21.3]} 27... Rxe5 {[%clk
0:00:06.7]} 28. fxg4 {[%clk 0:01:18.1]} 28... b5 {[%clk 0:00:06]} 29. Qf4 {[%clk
0:01:09.6]} 29... Rae6 {[%clk 0:00:03.7]} 30. g5 {[%clk 0:01:05.5]} 30... Rf5
{[%clk 0:00:03.5]} 31. Qc7+ {[%clk 0:01:06.1]} 31... Re7 {[%clk 0:00:04.1]} 32.
Qxa5 {[%clk 0:01:06]} 32... Ne4 {[%clk 0:00:04.7]} 33. Qxb5 {[%clk 0:01:05]}
33... Rxg5 {[%clk 0:00:05.3]} 34. a4 {[%clk 0:01:00.1]} 34... Nd6 {[%clk
0:00:02.2]} 35. Qc5 {[%clk 0:00:57.2]} 35... Ne4 {[%clk 0:00:02.3]} 36. Qd4
{[%clk 0:00:55.7]} 36... Rf5 {[%clk 0:00:02.7]} 37. a5 {[%clk 0:00:55.6]} 37...
g5 {[%clk 0:00:02.5]} 38. a6 {[%clk 0:00:55.9]} 38... g4 {[%clk 0:00:03.1]} 39.
a7 {[%clk 0:00:56.5]} 39... Re8 {[%clk 0:00:03.7]} 40. Qb6 {[%clk 0:00:53.3]}
40... g3 {[%clk 0:00:04.3]} 41. Qb7+ {[%clk 0:00:53.5]} 41... Kf6 {[%clk
0:00:04.4]} 42. a8=Q {[%clk 0:00:54.4]} 42... Rxa8 {[%clk 0:00:05]} 43. Qxa8
{[%clk 0:00:55.3]} 43... g2 {[%clk 0:00:05.4]} 44. Qf8+ {[%clk 0:00:54.9]} 44...
Ke5 {[%clk 0:00:05.4]} 45. Qg7+ {[%clk 0:00:55.2]} 1-0

[Event "Late-Titled-Tuesday-Blitz-May-14-2024"]
[Site "Chess.com"]
[Date "2024.05.14"]
[Round "5"]
[White "ArtemDyachuk"]
[Black "Hrant_ChessMood"]
[Result "1-0"]
[WhiteElo "2716"]
[BlackElo "2928"]
[TimeControl "180+1"]
[EndTime "14:55:24 PDT"]
[Termination "ArtemDyachuk won on time"]

1. e4 {[%clk 0:03:00.9]} 1... c6 {[%clk 0:02:55]} 2. d4 {[%clk 0:02:59.1]} 2...
d5 {[%clk 0:02:47.5]} 3. e5 {[%clk 0:02:59.3]} 3... Bf5 {[%clk 0:02:39.9]} 4.
Nf3 {[%clk 0:02:59.3]} 4... e6 {[%clk 0:02:32.6]} 5. Be2 {[%clk 0:02:59.1]} 5...
Ne7 {[%clk 0:02:25.8]} 6. O-O {[%clk 0:02:59.2]} 6... Bg6 {[%clk 0:02:19.3]} 7.
Nbd2 {[%clk 0:02:55.9]} 7... Nf5 {[%clk 0:02:18.6]} 8. Nb3 {[%clk 0:02:55.8]}
8... Nd7 {[%clk 0:02:14.2]} 9. a4 {[%clk 0:02:51.5]} 9... a6 {[%clk 0:02:13.7]}
10. a5 {[%clk 0:02:47.6]} 10... c5 {[%clk 0:02:12.2]} 11. dxc5 {[%clk
0:02:43.5]} 11... Nxc5 {[%clk 0:02:11.2]} 12. Nbd4 {[%clk 0:02:39.1]} 12... Nxd4
{[%clk 0:02:08.1]} 13. Nxd4 {[%clk 0:02:40]} 13... Be7 {[%clk 0:02:08.4]} 14. c3
{[%clk 0:02:22.6]} 14... O-O {[%clk 0:02:07.9]} 15. Be3 {[%clk 0:02:23.1]} 15...
Rc8 {[%clk 0:02:04.5]} 16. Kh1 {[%clk 0:02:11.6]} 16... Qc7 {[%clk 0:01:59.7]}
17. f4 {[%clk 0:02:09.6]} 17... Be4 {[%clk 0:01:59.6]} 18. Bf2 {[%clk
0:01:51.2]} 18... h6 {[%clk 0:01:44.6]} 19. Bg3 {[%clk 0:01:50.9]} 19... Qd8
{[%clk 0:01:29.6]} 20. Qe1 {[%clk 0:01:33.3]} 20... Bh7 {[%clk 0:01:08.5]} 21.
f5 {[%clk 0:01:17.1]} 21... exf5 {[%clk 0:01:04.8]} 22. Nxf5 {[%clk 0:01:15.5]}
22... Ne4 {[%clk 0:01:05]} 23. Bd3 {[%clk 0:01:13.5]} 23... Nxg3+ {[%clk
0:00:46.5]} 24. Qxg3 {[%clk 0:01:14.4]} 24... Bxf5 {[%clk 0:00:46.5]} 25. Rxf5
{[%clk 0:01:07.3]} 25... d4 {[%clk 0:00:45.1]} 26. c4 {[%clk 0:00:59]} 26... Rc6
{[%clk 0:00:40.7]} 27. Raf1 {[%clk 0:00:55.6]} 27... Qxa5 {[%clk 0:00:28.1]} 28.
e6 {[%clk 0:00:48.1]} 28... Rc5 {[%clk 0:00:11.4]} 29. exf7+ {[%clk 0:00:32.1]}
29... Kh8 {[%clk 0:00:09.9]} 30. Qg6 {[%clk 0:00:32]} 1-0

[Event "Late-Titled-Tuesday-Blitz-May-14-2024"]
[Site "Chess.com"]
[Date "2024.05.14"]
[Round "5"]
[White "ShahMatKanal"]
[Black "th3d4rkness"]
[Result "0-1"]
[WhiteElo "2383"]
[BlackElo "2185"]
[TimeControl "180+1"]
[EndTime "14:55:27 PDT"]
[Termination "th3d4rkness won by checkmate"]

1. e4 {[%clk 0:02:59.4]} 1... c5 {[%clk 0:02:59.5]} 2. Bc4 {[%clk 0:02:52.8]}
2... Nc6 {[%clk 0:02:58.2]} 3. Qh5 {[%clk 0:02:52]} 3... e6 {[%clk 0:02:57.4]}
4. d3 {[%clk 0:02:43.5]} 4... Nf6 {[%clk 0:02:56.9]} 5. Qe2 {[%clk 0:02:41.6]}
5... Nd4 {[%clk 0:02:56]} 6. Qd1 {[%clk 0:02:39.9]} 6... b5 {[%clk 0:02:53.8]}
7. Bb3 {[%clk 0:02:26.4]} 7... Bb7 {[%clk 0:02:51]} 8. Ne2 {[%clk 0:02:22.3]}
8... Nxb3 {[%clk 0:02:47]} 9. axb3 {[%clk 0:02:22.2]} 9... d5 {[%clk 0:02:46.1]}
10. f3 {[%clk 0:02:15.4]} 10... Be7 {[%clk 0:02:41.3]} 11. O-O {[%clk
0:02:14.9]} 11... O-O {[%clk 0:02:39.8]} 12. Be3 {[%clk 0:02:08.2]} 12... a6
{[%clk 0:02:35.9]} 13. Nd2 {[%clk 0:02:03]} 13... Rc8 {[%clk 0:02:25.9]} 14. Qe1
{[%clk 0:01:59.4]} 14... dxe4 {[%clk 0:01:56.6]} 15. fxe4 {[%clk 0:01:57.5]}
15... Ng4 {[%clk 0:01:56.3]} 16. Bf4 {[%clk 0:01:49.6]} 16... e5 {[%clk
0:01:54.9]} 17. h3 {[%clk 0:01:34.2]} 17... exf4 {[%clk 0:01:43.5]} 18. hxg4
{[%clk 0:01:33.7]} 18... Bh4 {[%clk 0:01:41.5]} 19. g3 {[%clk 0:01:26]} 19...
fxg3 {[%clk 0:01:38.2]} 20. Kg2 {[%clk 0:01:22.1]} 20... c4 {[%clk 0:01:25.6]}
21. bxc4 {[%clk 0:01:19.3]} 21... bxc4 {[%clk 0:01:25.7]} 22. Nf3 {[%clk
0:01:00.6]} 22... cxd3 {[%clk 0:01:21.2]} 23. cxd3 {[%clk 0:01:01.5]} 23... Rc2
{[%clk 0:01:20.4]} 24. Qd1 {[%clk 0:00:47]} 24... Qc8 {[%clk 0:01:09.8]} 25. Rc1
{[%clk 0:00:38]} 25... Rxc1 {[%clk 0:01:09]} 26. Qxc1 {[%clk 0:00:37.7]} 26...
Qxg4 {[%clk 0:01:09]} 27. Qc7 {[%clk 0:00:32.6]} 27... Bc8 {[%clk 0:01:07.8]}
28. Rh1 {[%clk 0:00:30.6]} 28... g5 {[%clk 0:01:03]} 29. Ned4 {[%clk 0:00:23.6]}
29... Be6 {[%clk 0:01:00.9]} 30. Qe5 {[%clk 0:00:17]} 30... h6 {[%clk 0:00:53]}
31. b4 {[%clk 0:00:15.9]} 31... Rc8 {[%clk 0:00:45.2]} 32. Qf6 {[%clk
0:00:14.4]} 32... Rb8 {[%clk 0:00:37.2]} 33. Qxh6 {[%clk 0:00:13.2]} 33... Rxb4
{[%clk 0:00:36.8]} 34. Nc2 {[%clk 0:00:03.6]} 34... Rb2 {[%clk 0:00:35.7]} 35.
Nd4 {[%clk 0:00:03.8]} 35... Rxc2+ {[%clk 0:00:34]} 36. Nxc2 {[%clk 0:00:04]}
36... Qe2+ {[%clk 0:00:34.3]} 37. Kg1 {[%clk 0:00:04.1]} 37... Qf2# {[%clk
0:00:34.7]} 0-1

[Event "Late-Titled-Tuesday-Blitz-May-14-2024"]
[Site "Chess.com"]
[Date "2024.05.14"]
[Round "5"]
[White "campochess"]
[Black "ZachHKL"]
[Result "1-0"]
[WhiteElo "2126"]
[BlackElo "2306"]
[TimeControl "180+1"]
[EndTime "14:55:28 PDT"]
[Termination "campochess won by resignation"]

1. e4 {[%clk 0:02:58.8]} 1... c5 {[%clk 0:02:59.1]} 2. b4 {[%clk 0:02:57.3]}
2... cxb4 {[%clk 0:02:58.9]} 3. d4 {[%clk 0:02:57.2]} 3... e6 {[%clk 0:02:49.6]}
4. Nf3 {[%clk 0:02:56.2]} 4... Nf6 {[%clk 0:02:46.1]} 5. Nbd2 {[%clk 0:02:54.8]}
5... d5 {[%clk 0:02:45.1]} 6. e5 {[%clk 0:02:52.8]} 6... Nfd7 {[%clk 0:02:43.1]}
7. a3 {[%clk 0:02:51.6]} 7... Nc6 {[%clk 0:02:39.4]} 8. Bd3 {[%clk 0:02:49.2]}
8... bxa3 {[%clk 0:02:38.1]} 9. c3 {[%clk 0:02:46.3]} 9... h6 {[%clk 0:02:36.3]}
10. O-O {[%clk 0:02:40.7]} 10... Be7 {[%clk 0:02:34.9]} 11. Bxa3 {[%clk
0:02:39.3]} 11... O-O {[%clk 0:02:33.1]} 12. Bc1 {[%clk 0:02:34.7]} 12... b6
{[%clk 0:02:26.2]} 13. h3 {[%clk 0:02:34.2]} 13... Bb7 {[%clk 0:02:25.4]} 14.
Nh2 {[%clk 0:02:33.5]} 14... f5 {[%clk 0:02:21.5]} 15. exf6 {[%clk 0:02:31.2]}
15... Bxf6 {[%clk 0:02:03.6]} 16. Qg4 {[%clk 0:02:28.6]} 16... Re8 {[%clk
0:01:58.2]} 17. Ndf3 {[%clk 0:02:27]} 17... Qe7 {[%clk 0:01:39.8]} 18. Qg6
{[%clk 0:02:26.8]} 18... Nf8 {[%clk 0:01:38.6]} 19. Qg3 {[%clk 0:02:24.3]} 19...
Rac8 {[%clk 0:01:35.3]} 20. Bxh6 {[%clk 0:02:14.6]} 20... Qc7 {[%clk 0:01:25.1]}
21. Bf4 {[%clk 0:02:09.9]} 21... e5 {[%clk 0:01:15.2]} 22. dxe5 {[%clk
0:02:07.8]} 22... Nxe5 {[%clk 0:01:13.6]} 23. Bf5 {[%clk 0:02:00.2]} 23... Rcd8
{[%clk 0:01:07.2]} 24. Ng4 {[%clk 0:01:59.9]} 24... Nxf3+ {[%clk 0:01:04.2]} 25.
gxf3 {[%clk 0:01:57.4]} 25... Qxc3 {[%clk 0:00:57.2]} 26. Rxa7 {[%clk
0:01:53.6]} 26... Bc8 {[%clk 0:00:55.4]} 27. Bxc8 {[%clk 0:01:36.2]} 27... Rxc8
{[%clk 0:00:56.3]} 28. Nh6+ {[%clk 0:01:33.7]} 28... Kh7 {[%clk 0:00:49.8]} 29.
Nf5 {[%clk 0:01:33.6]} 29... Ne6 {[%clk 0:00:37.1]} 30. Bd6 {[%clk 0:01:17.1]}
30... Qd3 {[%clk 0:00:27.3]} 31. Qg4 {[%clk 0:01:15.5]} 31... Kg8 {[%clk
0:00:20.4]} 32. Re1 {[%clk 0:01:03.7]} 32... Ng5 {[%clk 0:00:19.7]} 33. Rxe8+
{[%clk 0:01:02.1]} 33... Rxe8 {[%clk 0:00:20.6]} 34. Nh4 {[%clk 0:00:59.6]}
34... Re1+ {[%clk 0:00:18.2]} 35. Kg2 {[%clk 0:00:58.1]} 35... Qf1+ {[%clk
0:00:17.9]} 36. Kg3 {[%clk 0:00:51.8]} 36... Qg1+ {[%clk 0:00:18.1]} 37. Ng2
{[%clk 0:00:51.5]} 37... Nf7 {[%clk 0:00:15]} 38. Ra8+ {[%clk 0:00:48.8]} 38...
Kh7 {[%clk 0:00:13.4]} 39. Qf5+ {[%clk 0:00:48.4]} 39... Kh6 {[%clk 0:00:11.6]}
40. Bf4+ {[%clk 0:00:44.1]} 40... g5 {[%clk 0:00:05.9]} 41. Qxf6+ {[%clk
0:00:42.8]} 41... Kh5 {[%clk 0:00:06.5]} 42. Qxf7+ {[%clk 0:00:42.1]} 1-0